fUSD/lending_fUSD_20251224
["ID","MTS","AMOUNT","RATE_DAILY","PERIOD"]
[399658813,1766587864978,-5031.02213611,0.0003013,2]
[399658814,1766587864988,-200.57526558,0.0003013,2]
[399658815,1766587864998,-1217.60598196,0.0003013,2]
[399658816,1766587865010,-7688.89579576,0.0003013,2]
[399658817,1766587865019,-151.0,0.00030135,2]
[399658818,1766587865029,-872.07,0.00030137,2]
[399658819,1766587865039,-510.38,0.000302,30]
[399658820,1766587865049,-79316.55106829,0.000304,7]
[399658821,1766587865062,-458.23210594,0.000304,7]
[399658822,1766587865083,-11989.8144285,0.000304,7]
[399658823,1766587865263,-7.18746345,0.000304,7]
[399658824,1766587866495,-151.0,0.00015311,2]
[399658825,1766587866508,-254.10874609,0.00017738,2]
[399658826,1766587866518,-500.0,0.000181,2]
[399658827,1766587866527,-458.80967568,0.000181,2]
[399658828,1766587866539,-41.19032432,0.000181,2]
[399658829,1766587866548,-500.0,0.000181,2]
[399658830,1766587866558,-500.0,0.000181,2]
[399658831,1766587866568,-500.0,0.000181,2]
[399658832,1766587866578,-500.0,0.000181,2]
[399658833,1766587866588,-500.0,0.000181,2]
[399658834,1766587866598,-500.0,0.000181,2]
[399658835,1766587866609,-659.51,0.00019095,2]
[399658836,1766587866620,-481.37,0.00022164,2]
[399658837,1766587866631,-427.0083789,0.00023698,2]
[399658838,1766587866642,-37.8516211,0.00023698,2]
[399658839,1766587866652,-564.0,0.00025784,2]
[399658840,1766587866662,-170.76,0.00026657,2]
[399658841,1766587866672,-178.5,0.00028301,2]
[399658842,1766587866682,-564.0,0.00028784,2]
[399658843,1766587866692,-15786.0883789,0.000304,7]
[399658844,1766587866703,-1734.6,0.000304,7]
[399658845,1766587866715,-351.5521247,0.000304,7]
[399658846,1766587867523,2500.0,0.00014143,2]
[399658847,1766587883902,150.0,0.00014167,2]
[399658848,1766587884074,150.0,0.00014194,2]
[399658849,1766587928987,23150.1492,0.00014143,2]
[399658850,1766587935466,539.08779413,0.000176,30]
[399658851,1766587937599,-247.9094407,0.00014222,2]
[399658852,1766587937623,-300.0,0.00014232,2]
[399658853,1766587937646,-113.79702715,0.00014242,2]
[399658854,1766587942833,-151.00000017,0.00014242,2]
[399658855,1766587945202,10000.01,0.00014142,2]
[399658856,1766587945235,10000.01,0.00014142,2]
[399658857,1766587945267,10000.01,0.00014142,2]
[399658858,1766587945299,10000.01,0.00014142,2]
[399658859,1766587945333,10000.01,0.00014142,2]
[399658860,1766587945364,10000.01,0.00014142,2]
[399658861,1766587945395,10000.01,0.00014142,2]
[399658862,1766587945424,10000.01,0.00014142,2]
[399658863,1766587945779,10000.01,0.00014142,2]
[399658864,1766587945811,10000.01,0.00014142,2]
[399658865,1766587945844,899999.9,0.00014142,2]
[399658866,1766587959767,1000.0,0.00014143,2]
[399658867,1766588249041,532.79805887,0.000176,30]
[399658869,1766588684761,1683.68,7.523e-05,2]
[399658870,1766588684963,1683.68,7.919e-05,2]
[399658871,1766588685161,1683.68,8.315e-05,2]
[399658872,1766588685354,1683.68,8.711e-05,2]
[399658873,1766588685787,1683.68,9.107e-05,2]
[399658874,1766588685851,1581.61,9.503e-05,2]
[399658875,1766588685879,102.07,9.503e-05,2]
[399658876,1766588685952,1683.68,9.899e-05,2]
[399658877,1766588686349,1683.68,0.00010295,2]
[399658878,1766588686562,1683.68,0.00010691,2]
[399658879,1766588687156,1683.68,0.00011087,2]
[399658880,1766588687217,1683.68,0.00011483,2]
[399658881,1766588687269,1479.54,0.00011879,2]
[399658882,1766588687295,204.14,0.00011879,2]
[399658883,1766588687596,1683.68,0.00012274,2]
[399658884,1766588687808,1683.68,0.0001267,2]
[399658885,1766588688001,1683.68,0.00013066,2]
[399658886,1766588688198,1683.68,0.00013462,2]
[399658887,1766588688396,293.45686372,0.00013858,2]
[399658888,1766588688421,1390.22313628,0.00013858,2]
[399658889,1766588691655,-492.43574919,0.00014254,2]
[399658891,1766588694189,-162.64236034,0.00014254,2]
[399658892,1766588696491,-370.60413809,0.00014254,2]
[399658893,1766588701435,-170.24023428,0.00014254,2]
[399658894,1766588704206,-258.41362041,0.00014254,2]
[399658897,1766588778163,-229.34389769,0.00014254,2]
[399658898,1766588778193,-70.65610231,0.00014339,2]
[399658899,1766588972132,-108.27049715,0.00014339,2]
[399658900,1766588972154,-195.0,0.00014351,2]
[399658901,1766588972175,-160.36151247,0.00014364,2]
[399658902,1766588972196,-250.0,0.00014389,2]
[399658903,1766588972218,-195.0,0.0001439,2]
[399658904,1766588972239,-250.0,0.00014419,2]
[399658905,1766588972261,-1200.0,0.00014439,2]
[399658906,1766588972282,-300.0,0.00014439,2]
[399658907,1766588972303,-600.0,0.0001444,2]
[399658908,1766588972324,-300.0,0.0001444,2]
[399658909,1766588972345,-600.0,0.0001444,2]
[399658910,1766588972366,-600.0,0.0001444,2]
[399658911,1766588972387,-269.0,0.0001444,2]
[399658912,1766588972408,-300.0,0.0001444,2]
[399658913,1766588972429,-69.32048418,0.0001444,2]
[399658914,1766589009148,777.53,0.00022,30]
[399658917,1766589031372,-300.0,0.0001444,2]
[399658918,1766589031383,-300.0,0.0001444,2]
[399658919,1766589031393,-1200.0,0.0001444,2]
[399658920,1766589031404,-250.0,0.0001444,2]
[399658921,1766589031414,-81.66951582,0.0001444,2]
[399658922,1766589031424,-999.99,0.0001444,2]
[399658923,1766589031435,-500.0,0.00014441,2]
[399658924,1766589031445,-500.0,0.00014441,2]
[399658925,1766589031455,-500.0,0.00014441,2]
[399658926,1766589031465,-500.0,0.00014441,2]
[399658927,1766589031475,-1600.0,0.00014576,2]
[399658928,1766589031486,-334.4045,0.00014627,2]
[399658929,1766589031496,-1683.68,0.0001465,2]
[399658930,1766589031506,-150.0,0.00014814,2]
[399658931,1766589031516,-178.92659946,0.00014996,2]
[399658932,1766589031526,-514.49,0.00015042,2]
[399658933,1766589031537,-1683.68,0.00015046,2]
[399658934,1766589031548,-300.0,0.00015095,2]
[399658935,1766589031559,-1004.87064085,0.00015095,2]
[399658936,1766589031569,-3001.38,0.00015096,2]
[399658937,1766589031580,-9999.99,0.00015096,2]
[399658938,1766589031590,-150.99,0.00015096,2]
[399658939,1766589031599,-299.99,0.00015096,2]
[399658940,1766589031610,-2880.57,0.00015096,2]
[399658941,1766589031620,-9999.99,0.00015096,2]
[399658942,1766589031630,-13357.38,0.00015096,2]
[399658943,1766589031640,-9999.99,0.00015096,2]
[399658944,1766589031649,-1672.0,0.00015157,2]
[399658945,1766589031659,-500.0,0.00015173,2]
[399658946,1766589031669,-501.97166731,0.00015173,2]
[399658947,1766589031679,-500.0,0.00015173,2]
[399658948,1766589031689,-500.0,0.00015173,2]
[399658949,1766589031698,-500.0,0.00015173,2]
[399658950,1766589031708,-1646.0,0.00015188,2]
[399658951,1766589031718,-1764.0,0.00015218,2]
[399658952,1766589031727,-14151.4,0.00015224,2]
[399658953,1766589031737,-166.77,0.00015227,2]
[399658954,1766589031747,-603.0,0.0001536,2]
[399658955,1766589031757,-1530.0,0.0001539,2]
[399658956,1766589031766,-1515.0,0.00015421,2]
[399658957,1766589031776,-500.0,0.00015421,2]
[399658958,1766589031786,-201.0916735,0.00015497,2]
[399658959,1766589031796,-503.77633702,0.00015497,2]
[399658960,1766589032162,-272.30111466,0.00015497,2]
[399658961,1766589032174,-201.68796137,0.00015497,2]
[399658962,1766589032185,-151.0,0.00015497,2]
[399658963,1766589032196,-151.0,0.00015497,2]
[399658964,1766589032208,-151.0,0.00015497,2]
[399658965,1766589032219,-151.0,0.00015497,2]
[399658966,1766589032230,-151.0,0.00015497,2]
[399658967,1766589032240,-151.0,0.00015497,2]
[399658968,1766589032251,-151.0,0.00015497,2]
[399658969,1766589032261,-258.72522517,0.00015497,2]
[399658970,1766589032271,-27591.04624507,0.00015506,2]
[399658971,1766589032282,-18587.16,0.00015507,2]
[399658972,1766589032294,-5580.90701602,0.0001558,2]
[399658973,1766589032304,-5000.0,0.0001558,2]
[399658974,1766589032314,-5000.0,0.0001558,2]
[399658975,1766589032324,-5000.0,0.0001558,2]
[399658976,1766589032335,-5000.0,0.0001558,2]
[399658977,1766589032345,-3431.6302439,0.00015604,2]
[399658978,1766589032355,-500.0,0.00015667,2]
[399658979,1766589032365,-300.0,0.0001568,2]
[399658980,1766589032375,-151.0,0.00015687,2]
[399658981,1766589032385,-500.0,0.00015695,2]
[399658982,1766589032395,-151.0,0.0001571,2]
[399658983,1766589032404,-151.0,0.00015713,2]
[399658984,1766589032415,-1000.0,0.00015721,2]
[399658985,1766589032424,-1000.0,0.00015721,2]
[399658986,1766589032434,-151.0,0.00015731,2]
[399658987,1766589032444,-250.0,0.00015773,2]
[399658988,1766589032454,-300.0,0.00015773,2]
[399658989,1766589032464,-195.0,0.00015773,2]
[399658990,1766589032474,-420.0,0.00015813,2]
[399658991,1766589032483,-420.0,0.00015813,2]
[399658992,1766589032494,-1680.0,0.00015884,2]
[399658993,1766589032504,-250.0,0.00015884,2]
[399658994,1766589032513,-271.81,0.00015934,2]
[399658995,1766589032523,-510.0,0.00016227,2]
[399658996,1766589032535,-1500.0,0.00016268,2]
[399658997,1766589032545,-1500.0,0.00016268,2]
[399658998,1766589032554,-1600.0,0.00016398,2]
[399658999,1766589032564,-150.0,0.0001648,2]
[399659000,1766589032574,-500.0,0.0001648,2]
[399659001,1766589032584,-500.0,0.0001648,2]
[399659002,1766589032594,-1383.32534736,0.00016498,7]
[399659003,1766589032604,-1064.0,0.00016506,2]
[399659004,1766589032613,-150.0,0.00016507,2]
[399659005,1766589032624,-500.0,0.00016507,2]
[399659006,1766589032633,-500.0,0.00016507,2]
[399659007,1766589032644,-150.0,0.00016535,2]
[399659008,1766589032654,-500.0,0.00016535,2]
[399659009,1766589032664,-438.62652423,0.00016535,2]
[399659010,1766589032675,-156.07144864,0.00016562,2]
[399659011,1766589032685,-552.0,0.00016562,2]
[399659012,1766589032695,-1064.0,0.0001661,2]
[399659013,1766589032704,-200.0,0.00016784,2]
[399659014,1766589032715,-200.0,0.00016784,2]
[399659015,1766589032725,-1064.0,0.00016796,2]
[399659016,1766589032735,-168.0,0.00016802,2]
[399659017,1766589032744,-7944.47542568,0.00016811,2]
[399659018,1766589032754,-150.57173717,0.00016811,2]
[399659019,1766589032764,-164.15376558,0.00016811,2]
[399659020,1766589032774,-1013.73048679,0.00016816,2]
[399659021,1766589032784,-979.77732969,0.00016816,2]
[399659022,1766589032793,-168.0,0.00016883,2]
[399659023,1766589032803,-1201.82,0.0001689,2]
[399659024,1766589032813,-1201.82,0.0001689,2]
[399659025,1766589032823,-1201.82,0.0001689,2]
[399659026,1766589032833,-1201.82,0.0001689,2]
[399659027,1766589032843,-1201.82,0.0001689,2]
[399659028,1766589032852,-164.57,0.0001689,2]
[399659029,1766589032862,-247.23639369,0.00016899,2]
[399659030,1766589032872,-633.0600064,0.00016899,2]
[399659031,1766589032882,-394.05143107,0.00016899,2]
[399659032,1766589032892,-298.09330512,0.00016899,2]
[399659033,1766589032902,-500.0,0.00016899,2]
[399659034,1766589032911,-500.0,0.00016899,2]
[399659035,1766589032921,-500.0,0.00016899,2]
[399659036,1766589032931,-500.0,0.00016899,2]
[399659037,1766589032941,-500.0,0.00016899,2]
[399659038,1766589032951,-500.0,0.00016899,2]
[399659039,1766589032960,-500.0,0.00016899,2]
[399659040,1766589032970,-500.0,0.00016899,2]
[399659041,1766589032980,-500.0,0.00016899,2]
[399659042,1766589032990,-255.71531183,0.00016899,2]
[399659043,1766589032999,-500.0,0.00016899,2]
[399659044,1766589033010,-500.0,0.00016899,2]
[399659045,1766589033020,-500.0,0.00016899,2]
[399659046,1766589033030,-500.0,0.00016899,2]
[399659047,1766589033040,-500.0,0.00016899,2]
[399659048,1766589033050,-500.0,0.00016899,2]
[399659049,1766589033060,-500.0,0.00016899,2]
[399659050,1766589033070,-500.0,0.00016899,2]
[399659051,1766589033080,-500.0,0.00016899,2]
[399659052,1766589033090,-500.0,0.00016899,2]
[399659053,1766589033101,-500.0,0.00016899,2]
[399659054,1766589033111,-500.0,0.00016899,2]
[399659055,1766589033121,-500.0,0.00016899,2]
[399659056,1766589033133,-366.55233591,0.00016899,2]
[399659057,1766589033143,-500.0,0.00016899,2]
[399659058,1766589033153,-500.0,0.00016899,2]
[399659059,1766589033164,-500.0,0.00016899,2]
[399659060,1766589033175,-500.0,0.00016899,2]
[399659061,1766589033184,-500.0,0.00016899,2]
[399659062,1766589033195,-500.0,0.00016899,2]
[399659063,1766589033208,-500.0,0.00016899,2]
[399659064,1766589033219,-500.0,0.00016899,2]
[399659065,1766589033230,-500.0,0.00016899,2]
[399659066,1766589033240,-500.0,0.00016899,2]
[399659067,1766589033250,-500.0,0.00016899,2]
[399659068,1766589033260,-450.0,0.00016899,2]
[399659069,1766589033270,-500.0,0.00016899,2]
[399659070,1766589033281,-500.0,0.00016899,2]
[399659071,1766589033291,-500.0,0.00016899,2]
[399659072,1766589033301,-500.0,0.00016899,2]
[399659073,1766589033312,-500.0,0.00016899,2]
[399659074,1766589033323,-500.0,0.00016899,2]
[399659075,1766589033334,-500.0,0.00016899,2]
[399659076,1766589033344,-500.0,0.00016899,2]
[399659077,1766589033355,-500.0,0.00016899,2]
[399659078,1766589033365,-500.0,0.00016899,2]
[399659079,1766589033375,-214.95929311,0.00016899,2]
[399659080,1766589033385,-500.0,0.00016899,2]
[399659081,1766589033395,-500.0,0.00016899,2]
[399659082,1766589033405,-500.0,0.00016899,2]
[399659083,1766589033416,-500.0,0.00016899,2]
[399659084,1766589033426,-500.0,0.00016899,2]
[399659085,1766589033435,-214.95929311,0.00016899,2]
[399659086,1766589033446,-500.0,0.00016899,2]
[399659087,1766589033456,-500.0,0.00016899,2]
[399659088,1766589033466,-500.0,0.00016899,2]
[399659089,1766589033476,-500.0,0.00016899,2]
[399659090,1766589033487,-866.76,0.00016899,2]
[399659091,1766589033496,-500.0,0.00016899,2]
[399659092,1766589033506,-500.0,0.00016899,2]
[399659093,1766589033516,-500.0,0.00016899,2]
[399659094,1766589033526,-500.0,0.00016899,2]
[399659095,1766589033537,-500.0,0.00016899,2]
[399659096,1766589033547,-500.0,0.00016899,2]
[399659097,1766589033557,-500.0,0.00016899,2]
[399659098,1766589033567,-500.0,0.00016899,2]
[399659099,1766589033576,-959919.06267304,0.000169,2]
[399659100,1766589033591,-34500.04200988,0.000169,2]
[399659101,1766589033603,-5580.89531708,0.000169,2]
[399659102,1766589033613,-1064.0,0.00016911,2]
[399659103,1766589033623,-150.57173717,0.00016939,2]
[399659104,1766589033633,-9981.4132611,0.00016986,2]
[399659105,1766589033644,-134647.50633646,0.00016986,2]
[399659106,1766589033657,-1254.41808677,0.00016986,2]
[399659107,1766589033669,-1105.17324581,0.00016986,2]
[399659108,1766589033686,-726.89716718,0.00016986,2]
[399659109,1766589033702,-9315.67233927,0.00016986,2]
[399659110,1766589033714,-12506.99509061,0.00016986,2]
[399659111,1766589033731,-598.44007945,0.00016986,2]
[399659112,1766589033755,-753.8799999,0.00016986,2]
[399659113,1766589037614,-70104.31168361,0.00016986,2]
[399659114,1766589037633,-5166.6679344,0.00016986,2]
[399659115,1766589037648,-349.19103012,0.00016986,2]
[399659116,1766589037675,-735.85953622,0.00016986,2]
[399659117,1766589037685,-12987.04402191,0.00016986,2]
[399659118,1766589037697,-6180.06466264,0.00016986,2]
[399659121,1766589039740,-453.41648923,0.00016986,2]
[399659122,1766589039800,-93252.56903532,0.00016986,2]
[399659123,1766589039814,-13274.1,0.00017039,2]
[399659124,1766589039828,-166.77,0.00017131,2]
[399659125,1766589039842,-1064.0,0.00017145,2]
[399659126,1766589039855,-866.76,0.00017173,2]
[399659127,1766589039868,-1064.0,0.00017174,2]
[399659128,1766589039879,-1064.0,0.00017191,2]
[399659129,1766589039891,-168.0,0.00017232,2]
[399659130,1766589039903,-1064.0,0.00017294,2]
[399659131,1766589039915,-1064.0,0.00017294,2]
[399659132,1766589039928,-587.0,0.00017316,2]
[399659133,1766589039941,-328.0,0.00017316,2]
[399659134,1766589039955,-1064.0,0.0001734,2]
[399659135,1766589039968,-322.6107,0.00017367,2]
[399659136,1766589039981,-500.0,0.00017367,2]
[399659137,1766589039993,-500.0,0.00017367,2]
[399659138,1766589040005,-500.0,0.00017367,2]
[399659139,1766589040017,-500.0,0.00017367,2]
[399659140,1766589040029,-500.0,0.00017367,2]
[399659141,1766589040040,-500.0,0.00017367,2]
[399659143,1766589040050,-500.0,0.00017367,2]
[399659145,1766589040061,-500.0,0.00017367,2]
[399659146,1766589040073,-500.0,0.00017367,2]
[399659147,1766589040084,-500.0,0.00017367,2]
[399659148,1766589040097,-500.0,0.00017367,2]
[399659150,1766589040112,-500.0,0.00017367,2]
[399659152,1766589040127,-500.0,0.00017367,2]
[399659154,1766589040140,-500.0,0.00017367,2]
[399659156,1766589040151,-500.0,0.00017367,2]
[399659159,1766589040164,-500.0,0.00017367,2]
[399659161,1766589040175,-500.0,0.00017367,2]
[399659163,1766589040185,-500.0,0.00017367,2]
[399659165,1766589040197,-500.0,0.00017367,2]
[399659167,1766589040211,-500.0,0.00017367,2]
[399659169,1766589040223,-500.0,0.00017367,2]
[399659171,1766589040235,-500.0,0.00017367,2]
[399659173,1766589040247,-543.0,0.00017367,2]
[399659176,1766589040258,-200.0,0.00017367,2]
[399659178,1766589040269,-207.4,0.00017367,2]
[399659180,1766589040280,-215.0738,0.00017367,2]
[399659182,1766589040293,-223.0315306,0.00017367,2]
[399659184,1766589040305,-231.28369723,0.00017367,2]
[399659187,1766589040316,-239.84119403,0.00017367,2]
[399659189,1766589040334,-248.71531821,0.00017367,2]
[399659191,1766589040347,-257.91778498,0.00017367,2]
[399659194,1766589040358,-267.46074303,0.00017367,2]
[399659196,1766589040370,-277.35679052,0.00017367,2]
[399659198,1766589040384,-151.35193963,0.00017371,2]
[399659200,1766589040396,-866.76,0.00017447,2]
[399659202,1766589040407,-866.0,0.0001745,2]
[399659205,1766589040419,-2351.0,0.00017472,2]
[399659207,1766589040432,-1064.0,0.00017489,2]
[399659209,1766589040443,-3431.6302439,0.00017512,2]
[399659211,1766589040455,-1064.0,0.00017529,2]
[399659213,1766589040466,-168.0,0.0001756,2]
[399659215,1766589040478,-168.0,0.00017598,2]
[399659218,1766589040489,-1064.0,0.00017645,2]
[399659220,1766589040501,-1064.0,0.0001767,2]
[399659222,1766589040513,-1064.0,0.00017677,2]
[399659224,1766589040526,-1064.0,0.00017688,2]
[399659226,1766589040537,-866.76,0.00017721,2]
[399659228,1766589040549,-1064.0,0.00017755,2]
[399659231,1766589040561,-500.0,0.00017808,2]
[399659233,1766589040574,-912.0,0.00017823,2]
[399659235,1766589040586,-1198.0,0.00017823,2]
[399659237,1766589040598,-500.0,0.00017835,2]
[399659240,1766589040610,-6533.0,0.00017842,2]
[399659242,1766589040621,-2430.0,0.00017842,2]
[399659244,1766589040634,-4807.0,0.00017842,2]
[399659246,1766589040645,-155.59167587,0.00017863,2]
[399659248,1766589040658,-1064.0,0.00017985,2]
[399659250,1766589040670,-866.76,0.00017995,2]
[399659253,1766589040682,-1000.0,0.00018082,2]
[399659255,1766589040693,-500.0,0.00018097,2]
[399659257,1766589040705,-500.0,0.00018097,2]
[399659259,1766589040716,-217.814,0.00018098,2]
[399659261,1766589040728,-150.811,0.00018098,2]
[399659264,1766589040745,-228.266,0.00018098,2]
[399659266,1766589040757,-156.381,0.00018098,2]
[399659268,1766589040768,-250.0,0.00018098,2]
[399659270,1766589040780,-250.0,0.00018098,2]
[399659272,1766589040795,-250.0,0.00018098,2]
[399659274,1766589040807,-211.528,0.00018098,2]
[399659277,1766589040819,-166.0,0.00018098,2]
[399659279,1766589040832,-226.805,0.00018098,2]
[399659281,1766589040844,-1609.0,0.00018098,2]
[399659283,1766589040856,-3458.0,0.00018098,2]
[399659285,1766589040868,-1326.0,0.00018098,2]
[399659287,1766589040879,-1263.0,0.00018098,2]
[399659290,1766589040893,-432.0,0.00018098,2]
[399659292,1766589040905,-1064.0,0.00018108,2]
[399659294,1766589040917,-168.0,0.0001818,2]
[399659296,1766589040928,-1600.0,0.0001822,2]
[399659298,1766589040940,-866.76,0.00018268,2]
[399659300,1766589040950,-200.18296457,0.00018319,2]
[399659302,1766589040962,-151.35193963,0.00018457,2]
[399659305,1766589040973,-501.02283993,0.00018468,2]
[399659307,1766589040985,-303.44161789,0.00018527,2]
[399659309,1766589040996,-866.76,0.00018542,2]
[399659311,1766589041008,-165.33,0.00018566,2]
[399659313,1766589041018,-7944.47542561,0.00018585,2]
[399659315,1766589041030,-334.5472959,0.00018736,2]
[399659317,1766589041043,-543.0,0.00018736,2]
[399659319,1766589041054,-287.61899177,0.00018736,2]
[399659322,1766589041066,-1473.0,0.00018748,2]
[399659324,1766589041078,-1000.0,0.0001876,2]
[399659326,1766589041090,-150.98,0.000188,2]
[399659328,1766589041102,-150.98,0.000188,2]
[399659330,1766589041113,-150.98,0.000188,2]
[399659332,1766589041125,-150.98,0.000188,2]
[399659335,1766589041141,-866.76,0.00018816,2]
[399659337,1766589041152,-823.0,0.00018962,2]
[399659339,1766589041164,-166.77,0.00019034,2]
[399659340,1766589041178,-13274.1,0.00019035,2]
[399659341,1766589041189,-866.76,0.0001909,2]
[399659342,1766589041201,-2086.57419273,0.00019178,2]
[399659343,1766589041214,-20064.63,0.00019178,2]
[399659344,1766589041226,-3292.0,0.0001922,2]
[399659345,1766589041239,-866.76,0.00019364,2]
[399659346,1766589041251,-3431.6302439,0.0001942,2]
[399659347,1766589041264,-1000.0,0.00019438,2]
[399659348,1766589041277,-151.35193963,0.00019542,2]
[399659349,1766589041289,-866.76,0.00019638,2]
[399659350,1766589041300,-150.0,0.00019784,2]
[399659351,1766589041312,-150.0,0.00019784,2]
[399659352,1766589041324,-866.81894267,0.00019912,2]
[399659353,1766589041335,-1600.0,0.00020042,2]
[399659354,1766589041347,-346.92554585,0.00020105,2]
[399659355,1766589041359,-543.0,0.00020105,2]
[399659356,1766589041370,-298.26089446,0.00020105,2]
[399659357,1766589041381,-1000.0,0.00020116,2]
[399659358,1766589041393,-2505.0,0.00020152,2]
[399659359,1766589041405,-7944.47542561,0.00020359,2]
[399659360,1766589041416,-436.67,0.00020383,2]
[399659361,1766589041427,-430.23,0.00020383,2]
[399659362,1766589041440,-4915.0,0.00020558,2]
[399659363,1766589041452,-151.35193963,0.00020628,2]
[399659364,1766589041464,-436.67,0.00020657,2]
[399659365,1766589041475,-430.23,0.00020657,2]
[399659366,1766589041487,-490.94,0.000207,7]
[399659367,1766589041498,-152.87,0.00020722,2]
[399659368,1766589041510,-1152.0,0.00020765,2]
[399659369,1766589041522,-1000.0,0.00020795,2]
[399659371,1766589041533,-912.0,0.00020823,2]
[399659373,1766589041545,-1198.0,0.00020823,2]
[399659375,1766589041557,-6533.0,0.00020842,2]
[399659378,1766589041568,-2430.0,0.00020842,2]
[399659380,1766589041579,-4807.0,0.00020842,2]
[399659382,1766589041591,-265.60554082,0.00020873,2]
[399659384,1766589041602,-179.64,0.0002093,2]
[399659386,1766589041613,-242.04,0.00020931,2]
[399659388,1766589041624,-237.97,0.00020931,2]
[399659390,1766589041635,-166.77,0.00020938,2]
[399659392,1766589041646,-197.19876447,0.00020973,2]
[399659394,1766589041657,-500.0,0.00020973,2]
[399659397,1766589041668,-556.28902604,0.00020973,2]
[399659399,1766589041679,-582.06225981,0.00020973,2]
[399659401,1766589041690,-500.0,0.00020973,2]
[399659403,1766589041701,-501.62552641,0.00020973,2]
[399659405,1766589041712,-500.0,0.00020973,2]
[399659407,1766589041724,-501.54516283,0.00020973,2]
[399659409,1766589041735,-500.0,0.00020973,2]
[399659411,1766589041747,-500.36254835,0.00020973,2]
[399659414,1766589041758,-500.22140656,0.00020973,2]
[399659416,1766589041769,-156.62518783,0.00020973,2]
[399659418,1766589041780,-160.27935937,0.00020973,2]
[399659420,1766589041792,-640.32887025,0.00020973,2]
[399659422,1766589041804,-500.38208314,0.00020973,2]
[399659425,1766589041815,-160.27197192,0.00020973,2]
[399659427,1766589041826,-501.47129167,0.00020973,2]
[399659429,1766589041837,-150.01500017,0.00020973,2]
[399659431,1766589041848,-182.73731065,0.00020973,2]
[399659433,1766589041858,-500.0,0.00020973,2]
[399659435,1766589041869,-500.0,0.00020973,2]
[399659437,1766589041880,-500.89276948,0.00020973,2]
[399659439,1766589041891,-500.42799318,0.00020973,2]
[399659441,1766589041902,-570.6142812,0.00020973,2]
[399659444,1766589041913,-500.41261549,0.00020973,2]
[399659446,1766589041924,-501.27464861,0.00020973,2]
[399659448,1766589041935,-500.3718357,0.00020973,2]
[399659450,1766589041946,-500.82117656,0.00020973,2]
[399659452,1766589041957,-500.0,0.00020973,2]
[399659454,1766589041968,-640.00175838,0.00020973,2]
[399659456,1766589041979,-501.67885811,0.00020973,2]
[399659459,1766589041990,-501.50543646,0.00020973,2]
[399659461,1766589042001,-500.0,0.00020973,2]
[399659463,1766589042012,-334.79703865,0.00020973,2]
[399659465,1766589042023,-500.62013738,0.00020973,2]
[399659467,1766589042035,-500.67919196,0.00020973,2]
[399659469,1766589042047,-150.25848283,0.00020973,2]
[399659471,1766589042058,-501.57985553,0.00020973,2]
[399659473,1766589042069,-160.28006364,0.00020973,2]
[399659476,1766589042080,-500.37592798,0.00020973,2]
[399659478,1766589042091,-160.28006419,0.00020973,2]
[399659480,1766589042102,-500.0,0.00020973,2]
[399659482,1766589042113,-500.70766283,0.00020973,2]
[399659484,1766589042125,-500.7748224,0.00020973,2]
[399659486,1766589042140,-506.49407509,0.00020973,2]
[399659488,1766589042151,-505.10920999,0.00020973,2]